bitfinex/quotes_SOLUSD_20240726
["timestamp","ask_amount","ask_price","bid_price","bid_amount"]
[1721952002955,6.98420683,172.09,172.05,13.13]
[1721952003153,13.13,172.12,172.06,13.13]
[1721952003372,6.98408619,172.11,172.08,13.13]
[1721952003532,1.8412665,172.2,172.1,13.13]
[1721952003533,13.13,172.15,172.1,13.13]
[1721952003884,6.98296742,172.14,172.1,13.13]
[1721952004050,6.98286624,172.13,172.1,13.13]
[1721952004364,13.13,172.12,172.07,13.13]
[1721952004657,13.13,172.12,172.04,1.96702896]
[1721952004658,13.13,172.12,172.06,13.13]
[1721952004866,13.13,172.12,172.08,13.13]
[1721952005353,13.13,172.12,172.04,0.8049506]
[1721952005354,13.13,172.12,172.07,13.13]
[1721952005866,16.75942316,172.16,172.08,13.13]
[1721952006032,3.00240865,172.2,172.04,1.96702569]
[1721952006033,13.13,172.13,172.04,1.96702569]
[1721952006237,3.00240865,172.2,172.05,1.16193378]
[1721952006457,13.13,172.13,172.08,13.13]
[1721952008872,13.13,172.13,172.05,1.16193378]
[1721952009174,13.13,172.13,172.08,13.13]
[1721952010945,1.8412665,172.2,172.12,13.13]
[1721952011134,16.75885857,172.22,172.09,1.16193547]
[1721952011135,6.98218272,172.19,172.13,13.13]
[1721952011335,6.98218272,172.18,172.14,13.13]
[1721952012558,13.13,172.19,172.14,13.13]
[1721952012766,1.8412665,172.24,172.04,45.8049506]
[1721952012767,13.13,172.16,172.11,13.13]
[1721952012940,13.13,172.14,172.09,13.13]
[1721952013449,1.16114215,172.23,172.1,13.13]
[1721952013450,13.13,172.15,172.1,13.13]
[1721952014049,13.13,172.14,172.08,13.13]
[1721952014259,13.13,172.12,172.07,13.13]
[1721952014468,13.13,172.17,172.04,1.96681229]
[1721952014469,13.13,172.11,172.06,13.13]
[1721952014646,13.13,172.12,172.06,13.13]
[1721952014845,1.16114215,172.21,172.09,13.13]
[1721952015040,13.96444532,172.2,172.09,13.13]
[1721952015265,26.98330317,172.19,172.09,13.13]
[1721952015541,13.13,172.13,172.08,13.13]
[1721952015740,8.14444532,172.18,172.06,1.16207936]
[1721952015741,13.13,172.14,172.09,13.13]
[1721952016155,13.13,172.13,172.08,13.13]
[1721952017244,13.13,172.13,172.07,13.13]
[1721952019455,1.16114215,172.18,172.04,1.96686468]
[1721952019456,1.16114215,172.18,172.1,13.13]
[1721952019764,1.16114215,172.18,172.08,45.0]
[1721952019765,13.13,172.18,172.13,13.13]
[1721952019965,13.13,172.18,172.04,0.8049506]
[1721952020165,13.13,172.18,172.13,13.13]
[1721952020365,13.13,172.19,172.13,13.13]
[1721952021561,13.13,172.18,172.13,13.13]
[1721952021957,13.13,172.16,172.05,6.94808746]
[1721952022160,1.16114215,172.23,172.1,13.13]
[1721952022352,13.13,172.16,172.1,13.13]
[1721952022765,13.13,172.16,172.05,8.10997424]
[1721952022956,13.13,172.16,172.1,13.13]
[1721952024373,13.13,172.14,172.09,13.13]
[1721952024577,13.13,172.15,172.1,13.13]
[1721952025470,13.13,172.16,172.11,13.13]
[1721952025667,13.13,172.16,172.07,1.16191101]
[1721952025868,13.13,172.16,172.11,13.13]
[1721952026676,13.13,172.17,172.12,13.13]
[1721952027367,13.13,172.16,172.11,13.13]
[1721952027562,13.13,172.16,172.1,13.13]
[1721952028396,13.13,172.16,172.11,13.13]
[1721952029659,13.13,172.16,172.07,45.0]
[1721952029660,1.16114215,172.23,172.14,13.13]
[1721952029871,20.11134061,172.22,172.17,13.13]
[1721952030059,13.13,172.22,172.17,13.13]
[1721952031460,13.13,172.21,172.16,13.13]
[1721952033861,13.13,172.21,172.09,1.16166398]
[1721952033862,13.13,172.2,172.14,13.13]
[1721952034181,13.13,172.19,172.14,13.13]
[1721952034352,14.5141,172.25,172.15,13.13]
[1721952034660,13.13,172.21,172.15,13.13]
[1721952034983,1.16114215,172.24,172.15,13.13]
[1721952035278,13.13,172.2,172.15,13.13]
[1721952036375,13.13,172.2,172.11,1.16156976]
[1721952036580,13.13,172.2,172.15,13.13]
[1721952037082,13.13,172.22,172.16,13.13]
[1721952037578,13.13,172.21,172.16,13.13]
[1721952037986,14.5114,172.28,172.09,1.1615316]
[1721952037987,5.8051,172.27,172.2,13.13]
[1721952038188,13.13,172.25,172.2,13.13]
[1721952039090,5.8048,172.28,172.2,13.13]
[1721952039292,13.13,172.25,172.2,13.13]
[1721952039465,13.13,172.24,172.19,13.13]
[1721952040376,13.13,172.23,172.18,13.13]
[1721952040985,13.13,172.24,172.19,13.13]
[1721952041509,1.16114215,172.26,172.12,1.16125408]
[1721952041510,13.13,172.26,172.2,13.13]
[1721952041785,13.13,172.25,172.2,13.13]
[1721952043489,14.29114215,172.24,172.19,13.13]
[1721952043789,13.13,172.23,172.18,13.13]
[1721952043990,13.13,172.24,172.19,13.13]
[1721952049580,1.16114215,172.26,172.19,13.13]
[1721952049899,13.13,172.24,172.19,13.13]
[1721952050277,13.13,172.24,172.16,6.3799]
[1721952050577,13.13,172.23,172.18,13.13]
[1721952050765,13.13,172.24,172.19,13.13]
[1721952052014,14.29114215,172.25,172.2,13.13]
[1721952052194,13.13,172.25,172.2,13.13]
[1721952053490,13.13,172.24,172.19,13.13]
[1721952054991,1.16114215,172.23,172.19,13.13]
[1721952055296,13.13,172.2,172.15,13.13]
[1721952055482,13.13,172.2,172.14,13.13]
[1721952055684,13.13,172.19,172.11,12.96488746]
[1721952055881,13.13,172.18,172.13,13.13]
[1721952057267,1.16114215,172.23,172.14,13.13]
[1721952057268,13.13,172.19,172.14,13.13]
[1721952060499,1.16114215,172.23,172.15,13.13]
[1721952060792,13.13,172.18,172.11,12.96488746]
[1721952060965,13.13,172.18,172.09,12.86692499]
[1721952060966,1.16114215,172.21,172.09,6.03319961]
[1721952061171,13.13,172.14,172.07,10.22290601]
[1721952061412,15.9847,172.16,172.07,10.22290601]
[1721952061413,13.13,172.11,172.07,6.94808746]
[1721952061577,1.16114215,172.15,172.04,0.8049506]
[1721952061578,13.13,172.14,172.04,0.8049506]
[1721952061889,21.27577601,172.13,172.08,13.13]
[1721952062193,6.98463386,172.12,172.08,13.13]
[1721952062494,1.16114215,172.11,172.04,0.8049506]
[1721952062698,13.13,172.08,172.04,0.8049506]
[1721952062903,24.54147601,172.07,172.04,0.8049506]
[1721952063071,23.38033386,172.07,172.04,0.8049506]
[1721952063271,6.98463386,172.06,172.04,13.9349506]
[1721952063492,16.3957,172.07,172.04,13.9349506]
[1721952063710,16.3957,172.07,172.04,0.8049506]
[1721952064086,16.3957,172.07,172.04,13.9349506]
[1721952064293,20.0,172.11,172.06,13.13]
[1721952064579,20.0,172.11,172.04,0.8049506]
[1721952064580,20.0,172.11,172.09,13.13]
[1721952064782,20.0,172.11,172.04,0.8049506]
[1721952064783,13.13,172.11,172.06,13.13]
[1721952065090,21.2773021,172.1,172.05,13.13]
[1721952065296,13.13,172.08,172.04,0.8049506]
[1721952065469,1.16114215,172.07,172.04,0.8049506]
[1721952066407,13.13,172.05,172.04,0.8049506]
[1721952066613,14.29114215,172.05,172.04,0.8049506]
[1721952066771,86.2801434,172.05,172.04,0.8049506]
[1721952066971,86.2801434,172.05,171.87,13.3076859]
[1721952066972,17.45564215,172.04,171.87,13.3076859]
[1721952067179,17.45564215,172.04,171.95,13.13]
[1721952067180,82.45564215,172.04,171.95,13.13]
[1721952067397,13.13,172.0,171.88,15.6736]
[1721952067694,1.16114215,171.99,171.9,52.52]
[1721952067897,1.16114215,171.98,171.95,13.13]
[1721952068197,1.16114215,171.98,171.9,52.52]
[1721952068198,1.16114215,171.98,171.9,26.34]
[1721952068382,1.16114215,171.98,171.87,7.2772506]
[1721952068694,20.0,172.0,171.91,26.34]
[1721952069001,1.16114215,172.03,171.91,26.34]
[1721952069199,66.16114215,172.03,171.91,26.34]
[1721952069408,20.0,172.03,171.94,26.34]
[1721952070786,16.2945,172.04,171.94,26.34]
[1721952071495,15.1224,172.1,172.0,26.34]
[1721952071697,16.169,172.14,172.03,26.34]
[1721952071996,16.169,172.14,172.04,1.16230247]
[1721952072297,16.169,172.19,172.06,26.34]
[1721952072507,16.169,172.19,172.07,1.16204699]
[1721952072696,16.169,172.19,172.08,1.16198017]
[1721952073077,16.169,172.19,172.07,20.0]
[1721952073479,16.169,172.19,172.09,26.34]
[1721952073776,20.0,172.18,172.09,26.34]
[1721952076184,1.16114215,172.17,172.09,26.34]
[1721952076784,20.0,172.18,172.09,26.34]
[1721952077706,13.33014215,172.19,172.09,26.34]
[1721952080301,1.16114215,172.19,172.09,26.34]
[1721952080606,21.16114215,172.19,172.09,26.34]
[1721952080809,20.0,172.19,172.1,1.16195801]
[1721952081106,396.5635,172.24,172.12,26.34]
[1721952081409,22.1134,172.29,172.18,26.34]
[1721952081587,7.46934215,172.33,172.18,26.34]
[1721952081791,1.16114215,172.32,172.21,26.34]
[1721952082194,6.3082,172.33,172.21,27.50110442]
[1721952082494,17.33984215,172.34,172.21,27.50110442]
[1721952082680,16.1787,172.34,172.24,26.34]
[1721952083215,21.16114215,172.33,172.24,26.34]
[1721952085525,1.16114215,172.32,172.24,26.34]
[1721952085901,1.16114215,172.32,172.21,26.34]
[1721952086114,46.16114215,172.32,172.21,26.34]
[1721952088192,20.0,172.31,172.19,20.0]
[1721952088433,46.16114215,172.3,172.19,20.0]
[1721952090007,1.16114215,172.29,172.19,20.0]
[1721952091306,21.16114215,172.29,172.15,26.34]
[1721952091496,51.2139,172.28,172.15,27.50152375]
[1721952091695,1.16114215,172.27,172.15,26.34]
[1721952091906,20.0,172.29,172.18,26.34]
[1721952092314,21.16114215,172.32,172.18,26.34]
[1721952092502,45.0,172.31,172.18,26.34]
[1721952092704,21.16114215,172.3,172.18,27.50126649]
[1721952093323,21.16114215,172.3,172.18,22.50126649]
[1721952093506,20.0,172.3,172.21,26.34]
[1721952094707,21.16114215,172.3,172.21,26.34]
[1721952094904,21.16114215,172.32,172.21,26.34]
[1721952095098,16.1787,172.34,172.22,1.16108378]
[1721952095299,6.4317,172.37,172.24,32.757]
[1721952095519,1.16114215,172.36,172.24,32.757]
[1721952095703,1.16114215,172.35,172.24,32.757]
[1721952096324,6.4317,172.37,172.24,32.757]
[1721952096710,45.0,172.36,172.24,32.757]
[1721952096902,1.16114215,172.35,172.24,32.757]
[1721952097423,21.16114215,172.35,172.24,32.757]
[1721952098221,20.0,172.35,172.24,32.757]
[1721952098907,21.16114215,172.35,172.24,32.757]
[1721952099702,45.0,172.34,172.24,32.757]
[1721952099917,21.16114215,172.35,172.24,32.757]
[1721952100116,45.0,172.34,172.24,32.757]
[1721952100899,46.16114215,172.34,172.24,32.757]
[1721952101338,20.0,172.33,172.24,32.757]
[1721952102627,1.16114215,172.32,172.24,32.757]
[1721952102840,46.16114215,172.32,172.24,32.757]
[1721952103022,1.16114215,172.31,172.24,6.417]
[1721952103217,45.0,172.32,172.24,6.417]
[1721952103530,46.16114215,172.32,172.24,6.417]
[1721952103915,20.0,172.31,172.24,6.417]
[1721952104112,46.16114215,172.3,172.24,6.417]
[1721952104416,32.7717,172.37,172.24,6.417]
[1721952104615,1.16114215,172.36,172.24,32.757]
[1721952104817,20.0,172.36,172.24,32.757]
[1721952105203,1.16114215,172.35,172.24,32.757]
[1721952105819,46.16114215,172.35,172.24,32.757]
[1721952106014,20.0,172.34,172.24,32.757]
[1721952106225,1.16114215,172.33,172.24,32.757]
[1721952106614,21.16114215,172.34,172.24,32.757]
[1721952107417,20.0,172.34,172.24,32.757]
[1721952108528,45.0,172.35,172.24,32.757]
[1721952108715,15.248,172.39,172.25,1.16090316]
[1721952108931,45.0,172.38,172.25,1.16090316]
[1721952109829,20.0,172.37,172.25,1.16090316]
[1721952110132,20.0,172.37,172.25,21.16090316]
[1721952110133,45.0,172.36,172.25,21.16090316]
[1721952110314,20.0,172.37,172.25,21.16090316]
[1721952111012,1.16114215,172.36,172.25,20.0]
[1721952111212,1.16114215,172.36,172.24,32.757]
[1721952111213,1.16114215,172.35,172.24,32.757]
[1721952111417,21.16114215,172.35,172.24,32.757]
[1721952114516,45.0,172.34,172.24,32.757]
[1721952115844,21.16114215,172.35,172.24,32.757]
[1721952116146,1.16114215,172.35,172.24,32.757]
[1721952116718,20.0,172.38,172.24,32.757]
[1721952116719,37.45,172.38,172.24,32.757]
[1721952116936,46.16114215,172.37,172.24,32.757]
[1721952117247,26.97661328,172.36,172.24,32.757]
[1721952117453,46.16114215,172.35,172.24,32.757]
[1721952117827,20.0,172.34,172.24,32.757]
[1721952118250,21.16114215,172.38,172.24,32.757]
[1721952118539,6.97653158,172.37,172.24,32.757]
[1721952118736,21.16114215,172.36,172.25,1.16094736]
[1721952118937,21.16114215,172.36,172.24,32.757]
[1721952118938,1.16114215,172.35,172.24,32.757]
[1721952119130,1.16114215,172.34,172.24,32.757]
[1721952119537,21.16114215,172.34,172.24,32.757]
[1721952119735,45.0,172.33,172.24,6.417]
[1721952120028,1.16114215,172.32,172.24,6.417]
[1721952120229,21.16114215,172.32,172.24,6.417]
[1721952121425,45.0,172.31,172.24,6.417]
[1721952121630,1.16114215,172.3,172.24,6.417]
[1721952121932,45.0,172.31,172.24,6.417]
[1721952121933,1.16114215,172.29,172.24,6.417]
[1721952123647,21.16114215,172.3,172.24,6.417]
[1721952123827,6.97821179,172.29,172.24,6.417]
[1721952124228,20.0,172.28,172.24,6.417]
[1721952124524,65.0,172.28,172.24,6.417]
[1721952124732,20.0,172.28,172.21,15.5972]
[1721952124936,1.16114215,172.27,172.21,15.5972]
[1721952125230,8.1397189,172.26,172.21,15.5972]
[1721952125550,1.16114215,172.26,172.21,15.5972]
[1721952126144,1.16114215,172.29,172.21,15.5972]
[1721952126360,6.97875756,172.28,172.21,15.5972]
[1721952126655,46.16114215,172.27,172.21,15.5972]
[1721952126949,8.13989971,172.26,172.21,15.5972]
[1721952127157,6.97875756,172.25,172.21,15.5972]
[1721952128245,6.97875756,172.24,172.21,15.5972]
[1721952128549,45.0,172.27,172.21,15.5972]
[1721952128731,6.97906617,172.26,172.21,15.5972]
[1721952129936,6.97906617,172.25,172.21,15.5972]
[1721952130132,21.16114215,172.3,172.21,15.5972]
[1721952130339,26.97817581,172.29,172.21,15.5972]
[1721952130654,6.97817581,172.28,172.21,15.5972]
[1721952130832,6.97817581,172.27,172.21,15.5972]
[1721952131031,1.16114215,172.32,172.21,15.5972]
[1721952131226,6.97760949,172.31,172.21,15.5972]
[1721952131550,6.97760949,172.31,172.22,1.16114232]
[1721952131724,6.97760949,172.3,172.22,1.16114232]
[1721952131924,6.97760949,172.29,172.21,16.75822281]
[1721952132165,17.907737,172.34,172.21,15.5972]
[1721952132470,6.97697012,172.33,172.24,26.34]
[1721952132852,20.0,172.32,172.24,26.34]
[1721952133162,6.97697012,172.31,172.24,26.34]
[1721952133352,6.97697012,172.3,172.24,26.34]
[1721952133534,6.97697012,172.33,172.24,26.34]
[1721952133738,6.97697012,172.32,172.24,26.34]
[1721952133935,6.97697012,172.31,172.24,26.34]
[1721952134142,6.97697012,172.3,172.24,26.34]
[1721952134335,1.16114215,172.34,172.24,26.34]
[1721952134562,6.97672702,172.33,172.24,26.34]
[1721952136636,1.16114215,172.32,172.24,26.34]
[1721952136841,6.97672702,172.31,172.24,26.34]
[1721952137034,6.97672702,172.3,172.24,26.34]
[1721952137243,20.0,172.34,172.24,26.34]
[1721952137451,6.97659113,172.33,172.24,26.34]
[1721952139249,1.16114215,172.32,172.24,26.34]
[1721952139453,6.97659113,172.31,172.24,26.34]
[1721952139977,6.97659113,172.33,172.24,26.34]
[1721952140181,6.97659113,172.32,172.24,26.34]
[1721952140358,6.97659113,172.33,172.24,26.34]
[1721952140656,6.97659113,172.32,172.24,26.34]
[1721952140867,6.97659113,172.33,172.24,26.34]
[1721952141170,8.13773328,172.32,172.24,26.34]
[1721952141344,6.97659113,172.31,172.24,26.34]
[1721952142066,12.78029113,172.31,172.24,26.34]
[1721952142288,1.16114215,172.32,172.24,26.34]
[1721952142289,12.78049113,172.3,172.24,26.34]
[1721952142571,5.8042,172.29,172.24,26.34]
[1721952142871,5.8039,172.3,172.24,26.34]
[1721952143164,6.97671233,172.29,172.24,26.34]
[1721952144296,6.97671233,172.29,172.28,13.12]
[1721952147492,12.78051233,172.3,172.21,15.5972]
[1721952147672,6.97671233,172.29,172.22,20.0]
[1721952147858,6.97671233,172.29,172.28,13.12]
[1721952148859,6.97671233,172.3,172.28,13.12]
[1721952149060,12.78061233,172.3,172.22,20.0]
[1721952149287,6.9766892,172.29,172.22,20.0]
[1721952149582,6.9766892,172.29,172.28,13.12]
[1721952149766,6.97666498,172.29,172.28,13.12]
[1721952150285,5.8035,172.31,172.28,13.12]
[1721952150458,6.97662552,172.3,172.29,13.12]
[1721952150872,6.97662552,172.31,172.29,13.12]
[1721952151058,6.97662552,172.3,172.29,13.12]
[1721952153553,12.78042552,172.3,172.22,20.0]
[1721952153755,6.97662552,172.29,172.28,13.12]
[1721952154797,6.97662552,172.29,172.27,13.12]
[1721952154971,6.97662552,172.29,172.28,13.12]
[1721952155194,6.97662552,172.29,172.27,13.12]
[1721952159192,6.97662552,172.29,172.28,13.12]
[1721952159398,25.8024,172.34,172.28,13.12]
[1721952159599,6.97628502,172.33,172.21,16.75822874]
[1721952159899,6.97628502,172.32,172.27,6.3589]
[1721952160075,6.97628502,172.33,172.31,13.12]
[1721952160400,13.12,172.36,172.31,13.12]
[1721952160401,6.9756401,172.32,172.31,13.12]
[1721952160589,6.97550437,172.32,172.31,13.12]
[1721952160764,8.13664652,172.35,172.24,6.309]
[1721952160967,20.09550437,172.34,172.29,13.12]
[1721952161189,5.8033,172.32,172.29,13.12]
[1721952161379,6.97550437,172.31,172.3,13.12]
[1721952161892,6.97550437,172.32,172.3,13.12]
[1721952162103,5.8029,172.33,172.3,13.12]
[1721952162390,13.12,172.35,172.3,13.12]
[1721952162391,6.97574672,172.32,172.3,13.12]
[1721952162594,5.8025,172.34,172.24,6.309]
[1721952162800,6.97564244,172.33,172.31,13.12]
[1721952162976,5.8005,172.4,172.32,13.12]
[1721952163286,6.97440151,172.39,172.33,1.16041359]
[1721952163504,5.7998,172.42,172.33,16.25821359]
[1721952163700,6.97301102,172.41,172.33,16.25821359]
[1721952163866,17.0896506,172.47,172.34,20.0]
[1721952164065,17.0896506,172.47,172.41,13.12]
[1721952164066,5.7991,172.44,172.41,13.12]
[1721952164271,5.7991,172.44,172.35,53.64012024]
[1721952164272,6.97248736,172.43,172.35,52.48]
[1721952164495,6.97248736,172.46,172.42,13.12]
[1721952164681,6.6032506,172.47,172.44,13.12]
[1721952164682,6.97179922,172.45,172.44,13.12]
[1721952165233,6.97179922,172.45,172.43,13.12]
[1721952165397,0.8049506,172.47,172.44,13.12]
[1721952165584,0.8049506,172.47,172.45,13.12]
[1721952166597,6.6030506,172.47,172.45,13.12]
[1721952167198,6.6030506,172.47,172.44,13.12]
[1721952167384,5.7984,172.46,172.44,13.12]
[1721952167589,5.7988,172.45,172.43,13.12]
[1721952167781,5.7988,172.45,172.37,6.1712]
[1721952167980,5.7988,172.45,172.38,20.0]
[1721952168175,5.7988,172.45,172.43,13.12]
[1721952168704,5.7992,172.44,172.42,13.12]
[1721952168883,13.9249506,172.47,172.42,13.12]
[1721952169081,0.8049506,172.47,172.42,13.12]
[1721952169306,13.9249506,172.47,172.42,13.12]
[1721952169478,6.6030506,172.47,172.43,13.12]
[1721952169891,0.8049506,172.47,172.43,13.12]
[1721952170196,45.8049506,172.47,172.43,13.12]
[1721952170413,13.12,172.45,172.4,13.12]
[1721952170596,13.12,172.45,172.37,6.1712]
[1721952170597,5.8001,172.41,172.38,13.12]
[1721952170799,13.12,172.43,172.38,13.12]
[1721952171106,13.12,172.43,172.32,6.4683]
[1721952171408,5.8001,172.41,172.38,13.12]
[1721952171584,13.12,172.43,172.38,13.12]
[1721952171912,45.0,172.42,172.38,13.12]
[1721952172207,45.0,172.42,172.33,16.25811497]
[1721952172556,45.0,172.42,172.33,15.0978]
[1721952172808,5.8004,172.41,172.33,15.0978]
[1721952173403,5.8005,172.4,172.33,16.25820015]
[1721952173607,5.8005,172.4,172.33,15.0978]
[1721952175793,5.8008,172.39,172.33,15.0978]
[1721952178100,5.8005,172.4,172.33,15.0978]
[1721952178415,6.96164215,172.4,172.33,15.0978]
[1721952178713,5.8008,172.39,172.33,15.0978]
[1721952179011,1.16114215,172.39,172.29,15.3617]
[1721952179202,5.8025,172.34,172.29,15.3617]
[1721952179392,5.8022,172.35,172.29,15.3617]
[1721952179583,1.16114215,172.37,172.29,15.3617]
[1721952179787,5.8022,172.35,172.29,15.3617]
[1721952179981,5.8017,172.37,172.29,15.3617]
[1721952180593,5.8017,172.37,172.29,41.5717]
[1721952180823,25.8012,172.38,172.29,41.5717]
[1721952181317,5.8015,172.37,172.29,41.5717]
[1721952181490,20.0,172.38,172.29,41.5717]
[1721952181820,15.66184215,172.41,172.29,41.5717]
[1721952181821,5.8018,172.36,172.29,41.5717]
[1721952182107,21.16114215,172.4,172.29,41.5717]
[1721952182327,60.66374215,172.39,172.29,41.5717]
[1721952182490,5.8027,172.34,172.29,41.5717]
[1721952182891,5.8022,172.35,172.29,41.5717]
[1721952183087,5.8025,172.34,172.29,41.5717]
[1721952183713,14.5047,172.36,172.27,6.473]
[1721952184018,66.16114215,172.35,172.27,6.473]
[1721952184185,5.8035,172.31,172.27,6.473]
[1721952184389,5.8035,172.31,172.25,15.8405]
[1721952184390,1.16114215,172.34,172.25,15.8405]
[1721952184590,5.8041,172.29,172.23,32.4404]
[1721952187188,32.32564215,172.34,172.23,32.4404]
[1721952187189,5.8039,172.3,172.23,32.4404]
[1721952187514,5.8045,172.28,172.23,6.2304]
[1721952187819,6.96534215,172.29,172.23,6.2304]
[1721952188108,5.8042,172.29,172.23,6.2304]
[1721952188530,5.8039,172.3,172.23,6.2304]
[1721952188714,31.1645,172.34,172.23,32.4404]
[1721952188715,5.8027,172.34,172.23,32.4404]
[1721952188909,5.8027,172.34,172.26,26.21]
[1721952189786,5.8029,172.33,172.26,26.21]
[1721952189986,14.5058,172.35,172.26,26.21]
[1721952190191,1.16114215,172.34,172.26,26.21]
[1721952190410,1.16114215,172.34,172.23,6.2304]
[1721952190411,5.8042,172.29,172.23,32.4404]
[1721952190893,5.8037,172.31,172.23,32.4404]
[1721952191419,21.16114215,172.34,172.23,32.4404]
[1721952191589,5.8045,172.28,172.23,32.4404]
[1721952191790,5.8041,172.3,172.23,32.4404]
[1721952192212,20.0,172.34,172.23,32.4404]
[1721952192213,5.8035,172.31,172.23,32.4404]
[1721952193527,1.16114215,172.33,172.23,32.4404]
[1721952193709,1.16114215,172.32,172.23,32.4404]
[1721952195022,21.16114215,172.32,172.23,32.4404]
[1721952196097,5.8046,172.28,172.23,32.4404]
[1721952196624,5.8048,172.27,172.23,32.4404]
[1721952196915,35.66934215,172.32,172.23,32.4404]
[1721952197119,5.8045,172.28,172.23,32.4404]
[1721952197916,20.0,172.32,172.23,32.4404]
[1721952198115,5.804,172.3,172.23,32.4404]
[1721952198311,5.804,172.3,172.28,13.12]
[1721952200222,5.8035,172.31,172.28,13.12]
[1721952200718,13.12,172.37,172.3,13.12]
[1721952200910,13.12,172.37,172.26,1.1607104]
[1721952201217,13.12,172.37,172.32,13.12]
[1721952201619,5.8025,172.34,172.32,13.12]
[1721952202524,5.8028,172.33,172.32,13.12]
[1721952202695,13.12,172.37,172.32,13.12]
[1721952202902,15.66094215,172.42,172.35,13.12]
[1721952203101,15.66094215,172.42,172.36,13.12]
[1721952203102,13.12,172.41,172.36,13.12]
[1721952203321,5.8014,172.37,172.36,13.12]
[1721952204025,5.8014,172.37,172.3,7.76463319]
[1721952204228,5.8014,172.37,172.36,13.12]
[1721952205808,14.5025,172.39,172.35,13.12]
[1721952206201,14.5025,172.39,172.3,6.6042]
[1721952206202,5.802,172.36,172.3,32.8242]
[1721952206999,16.1196,172.43,172.28,15.7164]
[1721952207000,0.8049506,172.47,172.35,6.1938]
[1721952207209,0.8049506,172.47,172.39,26.22]
[1721952207413,5.7987,172.46,172.39,26.22]
[1721952207615,5.7988,172.45,172.39,26.22]
[1721952208008,5.7985,172.46,172.39,26.22]
[1721952208323,0.8049506,172.47,172.39,26.22]
[1721952208503,5.799,172.45,172.39,26.22]
[1721952209123,0.8049506,172.47,172.4,1.15989224]
[1721952209322,0.8049506,172.47,172.4,26.22]
[1721952209517,0.8049506,172.47,172.43,26.22]
[1721952209723,0.8049506,172.47,172.43,27.37959893]
[1721952210631,0.8049506,172.47,172.43,26.22]
[1721952211418,6.6030506,172.47,172.43,26.22]
[1721952211621,0.8049506,172.47,172.4,26.22]
[1721952212026,5.7993,172.44,172.4,26.22]
[1721952214618,5.7992,172.44,172.4,26.22]
[1721952215231,15.3009506,172.47,172.4,26.22]
[1721952215232,5.7987,172.45,172.4,26.22]
[1721952215435,5.7985,172.46,172.4,26.22]
[1721952215928,5.7988,172.45,172.4,26.22]
[1721952216231,5.7985,172.46,172.4,26.22]
[1721952216612,6.6030506,172.47,172.4,26.22]
[1721952216812,0.8049506,172.47,172.4,26.22]
[1721952217325,6.6030506,172.47,172.4,26.22]
[1721952218126,5.7985,172.46,172.4,26.22]
[1721952218319,6.6030506,172.47,172.4,26.22]
[1721952218567,0.8049506,172.47,172.43,26.22]
[1721952218746,0.8049506,172.47,172.46,26.22]
[1721952219425,0.8049506,172.47,172.46,32.7605]
[1721952222129,0.8049506,172.47,172.46,33.91983635]
[1721952222442,0.8049506,172.47,172.46,32.7605]